{"text_format":"1","workbook":"xlsx","n_sheets":3,"sheets":["Krycí list","Rekapitulace","Položky"],"not_rendered":{"charts":0,"images":0,"macros":0,"external_links":0,"defined_names":52,"comments":0,"pivot_tables":0},"unopened":[],"bounds":{"document_bytes":16777216,"sheet_cells":100000,"rows_first":2000,"rows_last":500,"rows_between":2000,"halvings":0,"cell_chars":16384,"cell_head_chars":4096},"cells_cut":0,"cells_raw":0,"read":"whole","date_system":"1900"}

{"sheet":"Krycí list","index":0,"n_rows":45,"n_cols":8,"rows_kept":45,"cut":false,"hidden":false,"merged":[[36,1,44,6],[7,2,7,4],[8,2,8,4],[9,2,9,4],[10,2,10,4],[11,2,11,4],[22,0,22,1],[29,5,29,6],[30,5,30,6],[31,5,31,6],[32,5,32,6],[33,5,33,6],[51,1,51,6],[52,1,52,6],[53,1,53,6],[54,1,54,6],[45,1,45,6],[46,1,46,6],[47,1,47,6],[48,1,48,6],[49,1,49,6],[50,1,50,6]]}
["POLOŽKOVÝ ROZPOČET"]
["Rozpočet",null,{"$f":"Rekapitulace!H1","v":"3287/06"},{"$f":"Rekapitulace!G2","v":"Oprava pravé části chodníku v ul. Jana Palacha"},null,"JKSO ","822.29"]
[]
["Objekt",null,"Název objektu",null,null,"SKP "]
["06",null,"Oprava pravé části chodníku v ul. Jana Palacha",null,null,"Měrná jednotka","m2"]
["Stavba",null,"Název stavby",null,null,"Počet jednotek",0]
["3287",null,"Turnov - Oprava MK a chodníků",null,null,"Náklady na m.j.",{"$f":"IF(PocetMJ=0,,ROUND((F30+F32)/PocetMJ,1))","v":0}]
["Projektant",null,null,null,null,"Typ rozpočtu"]
["Zpracovatel projektu"]
["Objednatel",null,"Město TURNOV"]
["Dodavatel",null,null,null,null,"Zakázkové číslo ","1687/2021"]
["Rozpočtoval",null,null,null,null,"Počet listů",5]
["ROZPOČTOVÉ NÁKLADY"]
["Základní rozpočtové náklady",null,null,"Veslejší a ostatní rozpočtové náklady"]
[null,"HSV celkem",{"$f":"HSV","v":0},{"$f":"Rekapitulace!A16","v":"Zařízení staveniště"},null,null,{"$f":"Rekapitulace!I16","v":0}]
["Z","PSV celkem",{"$f":"PSV","v":0},{"$f":"Rekapitulace!A17","v":"Provoz investora"},null,null,{"$f":"Rekapitulace!I17","v":0}]
["R","M práce celkem",{"$f":"Mont","v":0},{"$f":"Rekapitulace!A18","v":"Kompletační činnost (IČD)"},null,null,{"$f":"Rekapitulace!I18","v":0}]
["N","M dodávky celkem",{"$f":"Dodavka","v":0},{"$f":"Rekapitulace!A19","v":"Dokumentace skutečného provedení"},null,null,{"$f":"Rekapitulace!I19","v":0}]
["ZRN celkem",null,{"$f":"SUM(C15:C18)","v":0},{"$f":"Rekapitulace!A20","v":"Geodetické zaměření stavby"},null,null,{"$f":"Rekapitulace!I20","v":0}]
[null,null,null,{"$f":"Rekapitulace!A21","v":"DIO"},null,null,{"$f":"Rekapitulace!I21","v":0}]
["HZS",null,{"$f":"HZS","v":0}]
["ZRN+HZS",null,{"$f":"C19+C21","v":0}]
["ZRN+ost.náklady+HZS",null,{"$f":"C22+G23","v":0},"Ostatní náklady celkem",null,null,{"$f":"VRN","v":0}]
["Vypracoval",null,null,"Za zhotovitele",null,"Za objednatele"]
["Jméno :",null,null,"Jméno :",null,"Jméno :"]
["Datum :",null,null,"Datum :",null,"Datum :"]
[]
["Podpis :",null,null,"Podpis:",null,"Podpis:"]
[]
["Základ pro DPH",null,21,"%  ",null,{"$f":"C23-F32","v":0}]
["DPH",null,{"$f":"SazbaDPH1","v":21},"% ",null,{"$f":"ROUND(PRODUCT(F30,C31/100),0)","v":0}]
["Základ pro DPH",null,0,"% ",null,0]
["DPH",null,{"$f":"SazbaDPH2","v":0},"% ",null,{"$f":"ROUND(PRODUCT(F32,C33/100),0)","v":0}]
["CENA ZA OBJEKT CELKEM",null,null,null,null,{"$f":"ROUND(SUM(F30:F33),0)","v":0}]
[]
["Poznámka :",null,null,null,null,null,null," "]
[null,null,null,null,null,null,null," "]
[null,null,null,null,null,null,null," "]
[null,null,null,null,null,null,null," "]
[null,null,null,null,null,null,null," "]
[null,null,null,null,null,null,null," "]
[null,null,null,null,null,null,null," "]
[null,null,null,null,null,null,null," "]
[null,null,null,null,null,null,null," "]
[null,null,null,null,null,null,null," "]

{"sheet":"Rekapitulace","index":1,"n_rows":22,"n_cols":53,"rows_kept":22,"cut":false,"hidden":false,"merged":[[0,0,0,1],[1,0,1,1],[1,6,1,8],[21,7,21,8]]}
["Stavba :",null,{"$f":"CONCATENATE(cislostavby,\" \",nazevstavby)","v":"3287 Turnov - Oprava MK a chodníků"},null,null,null,"Rozpočet :","3287/06"]
["Objekt :",null,{"$f":"CONCATENATE(cisloobjektu,\" \",nazevobjektu)","v":"06 Oprava pravé části chodníku v ul. Jana Palacha"},null,null,null,"Oprava pravé části chodníku v ul. Jana Palacha"]
[]
["REKAPITULACE  STAVEBNÍCH  DÍLŮ"]
[]
[null,"Stavební díl",null,null,"HSV","PSV","Dodávka","Montáž","HZS"]
[{"$f":"Položky!B7","v":"1"},{"$f":"Položky!C7","v":"Zemní práce"},null,null,{"$f":"Položky!BA80","v":0},{"$f":"Položky!BB80","v":0},{"$f":"Položky!BC80","v":0},{"$f":"Položky!BD80","v":0},{"$f":"Položky!BE80","v":0}]
[{"$f":"Položky!B81","v":"5"},{"$f":"Položky!C81","v":"Komunikace"},null,null,{"$f":"Položky!BA113","v":0},{"$f":"Položky!BB113","v":0},{"$f":"Položky!BC113","v":0},{"$f":"Položky!BD113","v":0},{"$f":"Položky!BE113","v":0}]
[{"$f":"Položky!B114","v":"91"},{"$f":"Položky!C114","v":"Doplňující práce na komunikaci"},null,null,{"$f":"Položky!BA125","v":0},{"$f":"Položky!BB125","v":0},{"$f":"Položky!BC125","v":0},{"$f":"Položky!BD125","v":0},{"$f":"Položky!BE125","v":0}]
[{"$f":"Položky!B126","v":"99"},{"$f":"Položky!C126","v":"Staveništní přesun hmot"},null,null,{"$f":"Položky!BA128","v":0},{"$f":"Položky!BB128","v":0},{"$f":"Položky!BC128","v":0},{"$f":"Položky!BD128","v":0},{"$f":"Položky!BE128","v":0}]
[null,"CELKEM  OBJEKT",null,null,{"$f":"SUM(E7:E10)","v":0},{"$f":"SUM(F7:F10)","v":0},{"$f":"SUM(G7:G10)","v":0},{"$f":"SUM(H7:H10)","v":0},{"$f":"SUM(I7:I10)","v":0}]
[]
["VEDLEJŠÍ a OSTATNÍ ROZPOČTOVÉ  NÁKLADY"]
[]
["Název VaORN",null,null,null,"Kč",null,null,null,"Kč"]
["Zařízení staveniště",null,null,null,0,null,null,null,{"$f":"E16+F16*G16/100","v":0},null,null,null,null,null,null,null,null,null,null,null,null,null,null,null,null,null,null,null,null,null,null,null,null,null,null,null,null,null,null,null,null,null,null,null,null,null,null,null,null,null,null,null,2]
["Provoz investora",null,null,null,0,null,null,null,0,null,null,null,null,null,null,null,null,null,null,null,null,null,null,null,null,null,null,null,null,null,null,null,null,null,null,null,null,null,null,null,null,null,null,null,null,null,null,null,null,null,null,null,1]
["Kompletační činnost (IČD)",null,null,null,0,null,null,null,0,null,null,null,null,null,null,null,null,null,null,null,null,null,null,null,null,null,null,null,null,null,null,null,null,null,null,null,null,null,null,null,null,null,null,null,null,null,null,null,null,null,null,null,2]
["Dokumentace skutečného provedení",null,null,null,0,null,null,null,0,null,null,null,null,null,null,null,null,null,null,null,null,null,null,null,null,null,null,null,null,null,null,null,null,null,null,null,null,null,null,null,null,null,null,null,null,null,null,null,null,null,null,null,0]
["Geodetické zaměření stavby",null,null,null,0,null,null,null,0,null,null,null,null,null,null,null,null,null,null,null,null,null,null,null,null,null,null,null,null,null,null,null,null,null,null,null,null,null,null,null,null,null,null,null,null,null,null,null,null,null,null,null,0]
["DIO",null,null,null,0,null,null,null,0,null,null,null,null,null,null,null,null,null,null,null,null,null,null,null,null,null,null,null,null,null,null,null,null,null,null,null,null,null,null,null,null,null,null,null,null,null,null,null,null,null,null,null,0]
[null,"CELKEM VaORN",null,null,null,null,null,{"$f":"SUM(I16:I21)","v":0}]

{"sheet":"Položky","index":2,"n_rows":128,"n_cols":104,"rows_kept":128,"cut":false,"hidden":false,"merged":[[21,2,21,3],[0,0,0,6],[2,0,2,1],[3,0,3,1],[3,4,3,6],[8,2,8,3],[9,2,9,3],[11,2,11,3],[12,2,12,3],[13,2,13,3],[15,2,15,3],[17,2,17,3],[19,2,19,3],[20,2,20,3],[36,2,36,3],[22,2,22,3],[24,2,24,3],[26,2,26,3],[27,2,27,3],[28,2,28,3],[29,2,29,3],[30,2,30,3],[32,2,32,3],[33,2,33,3],[34,2,34,3],[35,2,35,3],[50,2,50,3],[38,2,38,3],[39,2,39,3],[40,2,40,3],[41,2,41,3],[42,2,42,3],[44,2,44,3],[45,2,45,3],[46,2,46,3],[47,2,47,3],[48,2,48,3],[49,2,49,3],[68,2,68,3],[52,2,52,3],[54,2,54,6],[55,2,55,3],[57,2,57,6],[58,2,58,3],[60,2,60,3],[61,2,61,3],[62,2,62,3],[63,2,63,3],[64,2,64,3],[66,2,66,3],[70,2,70,6],[71,2,71,3],[72,2,72,3],[73,2,73,3],[78,2,78,6],[105,2,105,3],[82,2,82,6],[83,2,83,3],[84,2,84,3],[85,2,85,3],[86,2,86,3],[87,2,87,3],[88,2,88,3],[89,2,89,3],[91,2,91,3],[92,2,92,3],[94,2,94,3],[95,2,95,3],[97,2,97,6],[98,2,98,3],[100,2,100,3],[101,2,101,3],[102,2,102,3],[103,2,103,3],[123,2,123,3],[106,2,106,3],[108,2,108,6],[109,2,109,3],[111,2,111,3],[115,2,115,3],[117,2,117,3],[119,2,119,3],[121,2,121,3]]}
["Položkový rozpočet "]
[]
["Stavba :",null,{"$f":"CONCATENATE(cislostavby,\" \",nazevstavby)","v":"3287 Turnov - Oprava MK a chodníků"},null,"Rozpočet:",{"$f":"Rekapitulace!H1","v":"3287/06"}]
["Objekt :",null,{"$f":"CONCATENATE(cisloobjektu,\" \",nazevobjektu)","v":"06 Oprava pravé části chodníku v ul. Jana Palacha"},null,{"$f":"Rekapitulace!G2","v":"Oprava pravé části chodníku v ul. Jana Palacha"}]
[]
["P.č.","Číslo položky","Název položky","MJ","množství","cena / MJ","celkem (Kč)"]
["Díl:","1","Zemní práce",null,null,null,null,null,null,null,null,null,null,null,1]
[1,"113106241R00","Rozebrání ploch komunikací ze silničních panelů ","m2",51.3,null,{"$f":"E8*F8","v":0},null,null,null,null,null,null,null,2,null,null,null,null,null,null,null,null,null,null,null,1,1,1,null,null,null,null,null,null,null,null,null,null,null,null,null,null,null,null,null,null,null,null,null,null,1,{"$f":"IF(AZ8=1,G8,0)","v":0},{"$f":"IF(AZ8=2,G8,0)","v":0},{"$f":"IF(AZ8=3,G8,0)","v":0},{"$f":"IF(AZ8=4,G8,0)","v":0},{"$f":"IF(AZ8=5,G8,0)","v":0},null,null,null,null,null,null,null,null,null,null,null,null,null,null,null,null,null,null,null,null,null,1,1,null,null,null,null,null,null,null,null,null,null,null,null,null,null,null,null,null,null,null,null,null,null,null,0]
[null,null,"Vjezdy od silnice k chodníku:6,30",null,6.3,null,null,null,null,null,null,null,"Vjezdy od silnice k chodníku:6,30"]
[null,null,"Chodník:45,00",null,45,null,null,null,null,null,null,null,"Chodník:45,00"]
[2,"113107510R00","Odstranění podkladu pl. 50 m2,kam.drcené tl.10 cm ","m2",265.8,null,{"$f":"E11*F11","v":0},null,null,null,null,null,null,null,2,null,null,null,null,null,null,null,null,null,null,null,1,1,1,null,null,null,null,null,null,null,null,null,null,null,null,null,null,null,null,null,null,null,null,null,null,1,{"$f":"IF(AZ11=1,G11,0)","v":0},{"$f":"IF(AZ11=2,G11,0)","v":0},{"$f":"IF(AZ11=3,G11,0)","v":0},{"$f":"IF(AZ11=4,G11,0)","v":0},{"$f":"IF(AZ11=5,G11,0)","v":0},null,null,null,null,null,null,null,null,null,null,null,null,null,null,null,null,null,null,null,null,null,1,1,null,null,null,null,null,null,null,null,null,null,null,null,null,null,null,null,null,null,null,null,null,null,null,0]
[null,null,"Z pod bouraných betonových ploch:201,25",null,201.25,null,null,null,null,null,null,null,"Z pod bouraných betonových ploch:201,25"]
[null,null,"Z pod bouraných asfaltových ploch :13,25",null,13.25,null,null,null,null,null,null,null,"Z pod bouraných asfaltových ploch :13,25"]
[null,null,"Z pod silničních panelů:51,30",null,51.3,null,null,null,null,null,null,null,"Z pod silničních panelů:51,30"]
[3,"113108305R00","Odstranění asfaltové vrstvy pl.do 50 m2, tl. 5 cm ","m2",20,null,{"$f":"E15*F15","v":0},null,null,null,null,null,null,null,2,null,null,null,null,null,null,null,null,null,null,null,1,1,1,null,null,null,null,null,null,null,null,null,null,null,null,null,null,null,null,null,null,null,null,null,null,1,{"$f":"IF(AZ15=1,G15,0)","v":0},{"$f":"IF(AZ15=2,G15,0)","v":0},{"$f":"IF(AZ15=3,G15,0)","v":0},{"$f":"IF(AZ15=4,G15,0)","v":0},{"$f":"IF(AZ15=5,G15,0)","v":0},null,null,null,null,null,null,null,null,null,null,null,null,null,null,null,null,null,null,null,null,null,1,1,null,null,null,null,null,null,null,null,null,null,null,null,null,null,null,null,null,null,null,null,null,null,null,0]
[null,null,"Stávající plochy chodníku:26,50*0,5+6,75",null,20,null,null,null,null,null,null,null,"Stávající plochy chodníku:26,50*0,5+6,75"]
[4,"113108315R00","Odstranění podkladu pl.do 50 m2, živice tl. 15 cm ","m2",27.5,null,{"$f":"E17*F17","v":0},null,null,null,null,null,null,null,2,null,null,null,null,null,null,null,null,null,null,null,1,1,1,null,null,null,null,null,null,null,null,null,null,null,null,null,null,null,null,null,null,null,null,null,null,1,{"$f":"IF(AZ17=1,G17,0)","v":0},{"$f":"IF(AZ17=2,G17,0)","v":0},{"$f":"IF(AZ17=3,G17,0)","v":0},{"$f":"IF(AZ17=4,G17,0)","v":0},{"$f":"IF(AZ17=5,G17,0)","v":0},null,null,null,null,null,null,null,null,null,null,null,null,null,null,null,null,null,null,null,null,null,1,1,null,null,null,null,null,null,null,null,null,null,null,null,null,null,null,null,null,null,null,null,null,null,null,0]
[null,null,"Vjezdy a křižovatky podél odstraňovaných betonových obrubníků:110,00*0,25",null,27.5,null,null,null,null,null,null,null,"Vjezdy a křižovatky podél odstraňovaných betonových obrubníků:110,00*0,25"]
[5,"113109315RRR","Odstranění podkladu pl.50 m2, bet.prostý tl.15 cm včetně případné KARI sítě","m2",201.25,null,{"$f":"E19*F19","v":0},null,null,null,null,null,null,null,2,null,null,null,null,null,null,null,null,null,null,null,1,1,1,null,null,null,null,null,null,null,null,null,null,null,null,null,null,null,null,null,null,null,null,null,null,1,{"$f":"IF(AZ19=1,G19,0)","v":0},{"$f":"IF(AZ19=2,G19,0)","v":0},{"$f":"IF(AZ19=3,G19,0)","v":0},{"$f":"IF(AZ19=4,G19,0)","v":0},{"$f":"IF(AZ19=5,G19,0)","v":0},null,null,null,null,null,null,null,null,null,null,null,null,null,null,null,null,null,null,null,null,null,1,1,null,null,null,null,null,null,null,null,null,null,null,null,null,null,null,null,null,null,null,null,null,null,null,0]
[null,null,"Vjezdy od silnice k chodníku:77,00+3,50",null,80.5,null,null,null,null,null,null,null,"Vjezdy od silnice k chodníku:77,00+3,50"]
[null,null,"Chodník:7,00",null,7,null,null,null,null,null,null,null,"Chodník:7,00"]
[null,null,"Prostory u křižovatek:26,50*0,5+30,00+28,50",null,71.75,null,null,null,null,null,null,null,"Prostory u křižovatek:26,50*0,5+30,00+28,50"]
[null,null,"Vjezdy a vchody mezi chodníkem a RD:42,00",null,42,null,null,null,null,null,null,null,"Vjezdy a vchody mezi chodníkem a RD:42,00"]
[6,"113202111R00","Vytrhání obrub z krajníků nebo obrubníků stojatých ","m",110,null,{"$f":"E24*F24","v":0},null,null,null,null,null,null,null,2,null,null,null,null,null,null,null,null,null,null,null,1,1,1,null,null,null,null,null,null,null,null,null,null,null,null,null,null,null,null,null,null,null,null,null,null,1,{"$f":"IF(AZ24=1,G24,0)","v":0},{"$f":"IF(AZ24=2,G24,0)","v":0},{"$f":"IF(AZ24=3,G24,0)","v":0},{"$f":"IF(AZ24=4,G24,0)","v":0},{"$f":"IF(AZ24=5,G24,0)","v":0},null,null,null,null,null,null,null,null,null,null,null,null,null,null,null,null,null,null,null,null,null,1,1,null,null,null,null,null,null,null,null,null,null,null,null,null,null,null,null,null,null,null,null,null,null,null,0]
[null,null,"Vjezdy a křižovatky podél odstraňovaných betonových obrubníků:110,00",null,110,null,null,null,null,null,null,null,"Vjezdy a křižovatky podél odstraňovaných betonových obrubníků:110,00"]
[7,"122201101R00","Odkopávky nezapažené v hor. 3 do 100 m3 ","m3",27.074999999999999,null,{"$f":"E26*F26","v":0},null,null,null,null,null,null,null,2,null,null,null,null,null,null,null,null,null,null,null,1,1,1,null,null,null,null,null,null,null,null,null,null,null,null,null,null,null,null,null,null,null,null,null,null,1,{"$f":"IF(AZ26=1,G26,0)","v":0},{"$f":"IF(AZ26=2,G26,0)","v":0},{"$f":"IF(AZ26=3,G26,0)","v":0},{"$f":"IF(AZ26=4,G26,0)","v":0},{"$f":"IF(AZ26=5,G26,0)","v":0},null,null,null,null,null,null,null,null,null,null,null,null,null,null,null,null,null,null,null,null,null,1,1,null,null,null,null,null,null,null,null,null,null,null,null,null,null,null,null,null,null,null,null,null,null,null,0]
[null,null,"Vjezdy od silnice k chodníku:(77,00+3,50)*0,10",null,8.0500000000000007,null,null,null,null,null,null,null,"Vjezdy od silnice k chodníku:(77,00+3,50)*0,10"]
[null,null,"Prostory u křižovatek:(26,50+30,00+28,50)*0,75*0,10",null,6.375,null,null,null,null,null,null,null,"Prostory u křižovatek:(26,50+30,00+28,50)*0,75*0,10"]
[null,null,"Vjezdy a vchody mezi chodníkem a RD:42,00*0,75*0,10",null,3.15,null,null,null,null,null,null,null,"Vjezdy a vchody mezi chodníkem a RD:42,00*0,75*0,10"]
[null,null,"Pro dláždění:26,00*0,25",null,6.5,null,null,null,null,null,null,null,"Pro dláždění:26,00*0,25"]
[null,null,"Podél bouraných panelů u chodníku:30,00*0,40*0,25",null,3,null,null,null,null,null,null,null,"Podél bouraných panelů u chodníku:30,00*0,40*0,25"]
[8,"122201109R00","Příplatek za lepivost - odkopávky v hor. 3 ","m3",27.074999999999999,null,{"$f":"E32*F32","v":0},null,null,null,null,null,null,null,2,null,null,null,null,null,null,null,null,null,null,null,1,1,1,null,null,null,null,null,null,null,null,null,null,null,null,null,null,null,null,null,null,null,null,null,null,1,{"$f":"IF(AZ32=1,G32,0)","v":0},{"$f":"IF(AZ32=2,G32,0)","v":0},{"$f":"IF(AZ32=3,G32,0)","v":0},{"$f":"IF(AZ32=4,G32,0)","v":0},{"$f":"IF(AZ32=5,G32,0)","v":0},null,null,null,null,null,null,null,null,null,null,null,null,null,null,null,null,null,null,null,null,null,1,1,null,null,null,null,null,null,null,null,null,null,null,null,null,null,null,null,null,null,null,null,null,null,null,0]
[null,null,"Vjezdy od silnice k chodníku:(77,00+3,50)*0,10",null,8.0500000000000007,null,null,null,null,null,null,null,"Vjezdy od silnice k chodníku:(77,00+3,50)*0,10"]
[null,null,"Prostory u křižovatek:(26,50+30,00+28,50)*0,75*0,10",null,6.375,null,null,null,null,null,null,null,"Prostory u křižovatek:(26,50+30,00+28,50)*0,75*0,10"]
[null,null,"Vjezdy a vchody mezi chodníkem a RD:42,00*0,75*0,10",null,3.15,null,null,null,null,null,null,null,"Vjezdy a vchody mezi chodníkem a RD:42,00*0,75*0,10"]
[null,null,"Pro dláždění:26,00*0,25",null,6.5,null,null,null,null,null,null,null,"Pro dláždění:26,00*0,25"]
[null,null,"Podél bouraných panelů u chodníku:30,00*0,40*0,25",null,3,null,null,null,null,null,null,null,"Podél bouraných panelů u chodníku:30,00*0,40*0,25"]
[9,"162701105RSZ","Vodorovné přemístění výkopku z hor.1-4 na skládku zhotovitele","m3",27.074999999999999,null,{"$f":"E38*F38","v":0},null,null,null,null,null,null,null,2,null,null,null,null,null,null,null,null,null,null,null,1,1,1,null,null,null,null,null,null,null,null,null,null,null,null,null,null,null,null,null,null,null,null,null,null,1,{"$f":"IF(AZ38=1,G38,0)","v":0},{"$f":"IF(AZ38=2,G38,0)","v":0},{"$f":"IF(AZ38=3,G38,0)","v":0},{"$f":"IF(AZ38=4,G38,0)","v":0},{"$f":"IF(AZ38=5,G38,0)","v":0},null,null,null,null,null,null,null,null,null,null,null,null,null,null,null,null,null,null,null,null,null,1,1,null,null,null,null,null,null,null,null,null,null,null,null,null,null,null,null,null,null,null,null,null,null,null,0]
[null,null,"Vjezdy od silnice k chodníku:(77,00+3,50)*0,10",null,8.0500000000000007,null,null,null,null,null,null,null,"Vjezdy od silnice k chodníku:(77,00+3,50)*0,10"]
[null,null,"Prostory u křižovatek:(26,50+30,00+28,50)*0,75*0,10",null,6.375,null,null,null,null,null,null,null,"Prostory u křižovatek:(26,50+30,00+28,50)*0,75*0,10"]
[null,null,"Vjezdy a vchody mezi chodníkem a RD:42,00*0,75*0,10",null,3.15,null,null,null,null,null,null,null,"Vjezdy a vchody mezi chodníkem a RD:42,00*0,75*0,10"]
[null,null,"Pro dláždění:26,00*0,25",null,6.5,null,null,null,null,null,null,null,"Pro dláždění:26,00*0,25"]
[null,null,"Podél bouraných panelů u chodníku:30,00*0,40*0,25",null,3,null,null,null,null,null,null,null,"Podél bouraných panelů u chodníku:30,00*0,40*0,25"]
[10,"181101102R00","Úprava pláně v zářezech v hor. 1-4, se zhutněním ","m2",332.95499999999998,null,{"$f":"E44*F44","v":0},null,null,null,null,null,null,null,2,null,null,null,null,null,null,null,null,null,null,null,1,1,1,null,null,null,null,null,null,null,null,null,null,null,null,null,null,null,null,null,null,null,null,null,null,1,{"$f":"IF(AZ44=1,G44,0)","v":0},{"$f":"IF(AZ44=2,G44,0)","v":0},{"$f":"IF(AZ44=3,G44,0)","v":0},{"$f":"IF(AZ44=4,G44,0)","v":0},{"$f":"IF(AZ44=5,G44,0)","v":0},null,null,null,null,null,null,null,null,null,null,null,null,null,null,null,null,null,null,null,null,null,1,1,null,null,null,null,null,null,null,null,null,null,null,null,null,null,null,null,null,null,null,null,null,null,null,0]
[null,null,"Po bouraných betonových plochách:201,25",null,201.25,null,null,null,null,null,null,null,"Po bouraných betonových plochách:201,25"]
[null,null,"Po bouraných asfaltových plochách v chodníku:13,25",null,13.25,null,null,null,null,null,null,null,"Po bouraných asfaltových plochách v chodníku:13,25"]
[null,null,"Po silničních panelech v chodníku:51,30",null,51.3,null,null,null,null,null,null,null,"Po silničních panelech v chodníku:51,30"]
[null,null,"Po silničních panelech u vjezdu:6,30",null,6.3,null,null,null,null,null,null,null,"Po silničních panelech u vjezdu:6,30"]
[null,null,"Pro rozšíření části chodníku u bouraných panelů:30,00*0,40",null,12,null,null,null,null,null,null,null,"Pro rozšíření části chodníku u bouraných panelů:30,00*0,40"]
[null,null,"Pro nové obrubníky - Vjezdy a křižovatky podél odstraňovaných betonových obrubníků:110,00*0,30",null,33,null,null,null,null,null,null,null,"Pro nové obrubníky - Vjezdy a křižovatky podél odstraňovaných betonových obrubníků:110,00*0,30"]
[null,null,"Rezerva 5%:317,10*0,05",null,15.855,null,null,null,null,null,null,null,"Rezerva 5%:317,10*0,05"]
[11,"182001111R00","Plošná úprava terénu, nerovnosti do 10 cm v rovině ","m2",60,null,{"$f":"E52*F52","v":0},null,null,null,null,null,null,null,2,null,null,null,null,null,null,null,null,null,null,null,1,1,1,null,null,null,null,null,null,null,null,null,null,null,null,null,null,null,null,null,null,null,null,null,null,1,{"$f":"IF(AZ52=1,G52,0)","v":0},{"$f":"IF(AZ52=2,G52,0)","v":0},{"$f":"IF(AZ52=3,G52,0)","v":0},{"$f":"IF(AZ52=4,G52,0)","v":0},{"$f":"IF(AZ52=5,G52,0)","v":0},null,null,null,null,null,null,null,null,null,null,null,null,null,null,null,null,null,null,null,null,null,1,1,null,null,null,null,null,null,null,null,null,null,null,null,null,null,null,null,null,null,null,null,null,null,null,0]
[null,null,"Výšková úprava terénu podél snižovaných nájezdů mezi komunikací a chodníkem:60,00*1,00",null,60,null,null,null,null,null,null,null,"Výšková úprava terénu podél snižovaných nájezdů mezi komunikací a chodníkem:60,00*1,00"]
[12,"182300010RRC","Rozprostření ornice ve svahu tloušťka 10 cm dovoz ornice ze vzdálenosti 5 km, osetí trávou","m2",274,null,{"$f":"E54*F54","v":0},null,null,null,null,null,null,null,2,null,null,null,null,null,null,null,null,null,null,null,1,1,1,null,null,null,null,null,null,null,null,null,null,null,null,null,null,null,null,null,null,null,null,null,null,1,{"$f":"IF(AZ54=1,G54,0)","v":0},{"$f":"IF(AZ54=2,G54,0)","v":0},{"$f":"IF(AZ54=3,G54,0)","v":0},{"$f":"IF(AZ54=4,G54,0)","v":0},{"$f":"IF(AZ54=5,G54,0)","v":0},null,null,null,null,null,null,null,null,null,null,null,null,null,null,null,null,null,null,null,null,null,1,1,null,null,null,null,null,null,null,null,null,null,null,null,null,null,null,null,null,null,null,null,null,null,null,3.0000000000000001E-5]
[null,null,"Ornice investora",null,null,null,null,null,null,null,null,"Ornice investora",null,null,3]
[null,null,"Doplnění ornice po provedených asfaltových plochách:274,00",null,274,null,null,null,null,null,null,null,"Doplnění ornice po provedených asfaltových plochách:274,00"]
[13,"185803511RRR","Odstranění přerostlého drnu u cest a záhonů ","m",275,null,{"$f":"E57*F57","v":0},null,null,null,null,null,null,null,2,null,null,null,null,null,null,null,null,null,null,null,1,0,0,null,null,null,null,null,null,null,null,null,null,null,null,null,null,null,null,null,null,null,null,null,null,1,{"$f":"IF(AZ57=1,G57,0)","v":0},{"$f":"IF(AZ57=2,G57,0)","v":0},{"$f":"IF(AZ57=3,G57,0)","v":0},{"$f":"IF(AZ57=4,G57,0)","v":0},{"$f":"IF(AZ57=5,G57,0)","v":0},null,null,null,null,null,null,null,null,null,null,null,null,null,null,null,null,null,null,null,null,null,1,0,null,null,null,null,null,null,null,null,null,null,null,null,null,null,null,null,null,null,null,null,null,null,null,0]
[null,null,"Součástí položky je i odvoz drnu na skládku zhotovitele.",null,null,null,null,null,null,null,null,"Součástí položky je i odvoz drnu na skládku zhotovitele.",null,null,3]
[null,null,"Podél stávajících betonových a asfaltových ploch:275,00",null,275,null,null,null,null,null,null,null,"Podél stávajících betonových a asfaltových ploch:275,00"]
[14,"199000002R00","Poplatek za skládku horniny 1- 4 ","m3",27.074999999999999,null,{"$f":"E60*F60","v":0},null,null,null,null,null,null,null,2,null,null,null,null,null,null,null,null,null,null,null,1,1,1,null,null,null,null,null,null,null,null,null,null,null,null,null,null,null,null,null,null,null,null,null,null,1,{"$f":"IF(AZ60=1,G60,0)","v":0},{"$f":"IF(AZ60=2,G60,0)","v":0},{"$f":"IF(AZ60=3,G60,0)","v":0},{"$f":"IF(AZ60=4,G60,0)","v":0},{"$f":"IF(AZ60=5,G60,0)","v":0},null,null,null,null,null,null,null,null,null,null,null,null,null,null,null,null,null,null,null,null,null,1,1,null,null,null,null,null,null,null,null,null,null,null,null,null,null,null,null,null,null,null,null,null,null,null,0]
[null,null,"Vjezdy od silnice k chodníku:(77,00+3,50)*0,10",null,8.0500000000000007,null,null,null,null,null,null,null,"Vjezdy od silnice k chodníku:(77,00+3,50)*0,10"]
[null,null,"Prostory u křižovatek:(26,50+30,00+28,50)*0,75*0,10",null,6.375,null,null,null,null,null,null,null,"Prostory u křižovatek:(26,50+30,00+28,50)*0,75*0,10"]
[null,null,"Vjezdy a vchody mezi chodníkem a RD:42,00*0,75*0,10",null,3.15,null,null,null,null,null,null,null,"Vjezdy a vchody mezi chodníkem a RD:42,00*0,75*0,10"]
[null,null,"Pro dláždění:26,00*0,25",null,6.5,null,null,null,null,null,null,null,"Pro dláždění:26,00*0,25"]
[null,null,"Podél bouraných panelů u chodníku:30,00*0,40*0,25",null,3,null,null,null,null,null,null,null,"Podél bouraných panelů u chodníku:30,00*0,40*0,25"]
[15,"919735114R00","Řezání stávajícího živičného krytu tl. 15 - 20 cm ","m",115,null,{"$f":"E66*F66","v":0},null,null,null,null,null,null,null,2,null,null,null,null,null,null,null,null,null,null,null,1,1,1,null,null,null,null,null,null,null,null,null,null,null,null,null,null,null,null,null,null,null,null,null,null,1,{"$f":"IF(AZ66=1,G66,0)","v":0},{"$f":"IF(AZ66=2,G66,0)","v":0},{"$f":"IF(AZ66=3,G66,0)","v":0},{"$f":"IF(AZ66=4,G66,0)","v":0},{"$f":"IF(AZ66=5,G66,0)","v":0},null,null,null,null,null,null,null,null,null,null,null,null,null,null,null,null,null,null,null,null,null,1,1,null,null,null,null,null,null,null,null,null,null,null,null,null,null,null,null,null,null,null,null,null,null,null,0]
[null,null,"Vjezdy a křižovatky podél odstraňovaných betonových obrubníků:110,00+0,25*20",null,115,null,null,null,null,null,null,null,"Vjezdy a křižovatky podél odstraňovaných betonových obrubníků:110,00+0,25*20"]
[16,"919735123R00","Řezání stávajícího betonového krytu tl. 10 - 15 cm ","m",48,null,{"$f":"E68*F68","v":0},null,null,null,null,null,null,null,2,null,null,null,null,null,null,null,null,null,null,null,1,1,1,null,null,null,null,null,null,null,null,null,null,null,null,null,null,null,null,null,null,null,null,null,null,1,{"$f":"IF(AZ68=1,G68,0)","v":0},{"$f":"IF(AZ68=2,G68,0)","v":0},{"$f":"IF(AZ68=3,G68,0)","v":0},{"$f":"IF(AZ68=4,G68,0)","v":0},{"$f":"IF(AZ68=5,G68,0)","v":0},null,null,null,null,null,null,null,null,null,null,null,null,null,null,null,null,null,null,null,null,null,1,1,null,null,null,null,null,null,null,null,null,null,null,null,null,null,null,null,null,null,null,null,null,null,null,0]
[null,null,"Pro bouraní betonových ploch u vstupů a vjezdů u RD:48,00",null,48,null,null,null,null,null,null,null,"Pro bouraní betonových ploch u vstupů a vjezdů u RD:48,00"]
[17,"938909311RRR","Odstranění nánosu z povrchu podkladu živice/beton ","m2",302.89999999999998,null,{"$f":"E70*F70","v":0},null,null,null,null,null,null,null,2,null,null,null,null,null,null,null,null,null,null,null,1,1,1,null,null,null,null,null,null,null,null,null,null,null,null,null,null,null,null,null,null,null,null,null,null,1,{"$f":"IF(AZ70=1,G70,0)","v":0},{"$f":"IF(AZ70=2,G70,0)","v":0},{"$f":"IF(AZ70=3,G70,0)","v":0},{"$f":"IF(AZ70=4,G70,0)","v":0},{"$f":"IF(AZ70=5,G70,0)","v":0},null,null,null,null,null,null,null,null,null,null,null,null,null,null,null,null,null,null,null,null,null,1,1,null,null,null,null,null,null,null,null,null,null,null,null,null,null,null,null,null,null,null,null,null,null,null,0]
[null,null,"Včetně odvozu na skládku zhotovitele",null,null,null,null,null,null,null,null,"Včetně odvozu na skládku zhotovitele",null,null,3]
[null,null,"Stávající neupravované a nebourané plochy:",null,0,null,null,null,null,null,null,null,"Stávající neupravované a nebourané plochy:"]
[null,null,"Celková plocha chodníků a vjezdů:575,00",null,575,null,null,null,null,null,null,null,"Celková plocha chodníků a vjezdů:575,00"]
[null,null,"Odpočet plochy nových konstrukcí :-272,10",null,-272.10000000000002,null,null,null,null,null,null,null,"Odpočet plochy nových konstrukcí :-272,10"]
[18,"979082113RSZ","Vodorovná doprava suti po suchu na skládku zhotovitele","t",179.0814,null,{"$f":"E75*F75","v":0},null,null,null,null,null,null,null,2,null,null,null,null,null,null,null,null,null,null,null,1,1,1,null,null,null,null,null,null,null,null,null,null,null,null,null,null,null,null,null,null,null,null,null,null,1,{"$f":"IF(AZ75=1,G75,0)","v":0},{"$f":"IF(AZ75=2,G75,0)","v":0},{"$f":"IF(AZ75=3,G75,0)","v":0},{"$f":"IF(AZ75=4,G75,0)","v":0},{"$f":"IF(AZ75=5,G75,0)","v":0},null,null,null,null,null,null,null,null,null,null,null,null,null,null,null,null,null,null,null,null,null,1,1,null,null,null,null,null,null,null,null,null,null,null,null,null,null,null,null,null,null,null,null,null,null,null,0]
[19,"979990002RRŠ","Poplatek za skládku stavební suti štěrky z komunikací","t",58.475999999999999,null,{"$f":"E76*F76","v":0},null,null,null,null,null,null,null,2,null,null,null,null,null,null,null,null,null,null,null,1,1,1,null,null,null,null,null,null,null,null,null,null,null,null,null,null,null,null,null,null,null,null,null,null,1,{"$f":"IF(AZ76=1,G76,0)","v":0},{"$f":"IF(AZ76=2,G76,0)","v":0},{"$f":"IF(AZ76=3,G76,0)","v":0},{"$f":"IF(AZ76=4,G76,0)","v":0},{"$f":"IF(AZ76=5,G76,0)","v":0},null,null,null,null,null,null,null,null,null,null,null,null,null,null,null,null,null,null,null,null,null,1,1,null,null,null,null,null,null,null,null,null,null,null,null,null,null,null,null,null,null,null,null,null,null,null,0]
[20,"979990011RRB","Poplatek za skládku stavební suti beton z komunikací","t",109.3304,null,{"$f":"E77*F77","v":0},null,null,null,null,null,null,null,2,null,null,null,null,null,null,null,null,null,null,null,1,1,1,null,null,null,null,null,null,null,null,null,null,null,null,null,null,null,null,null,null,null,null,null,null,1,{"$f":"IF(AZ77=1,G77,0)","v":0},{"$f":"IF(AZ77=2,G77,0)","v":0},{"$f":"IF(AZ77=3,G77,0)","v":0},{"$f":"IF(AZ77=4,G77,0)","v":0},{"$f":"IF(AZ77=5,G77,0)","v":0},null,null,null,null,null,null,null,null,null,null,null,null,null,null,null,null,null,null,null,null,null,1,1,null,null,null,null,null,null,null,null,null,null,null,null,null,null,null,null,null,null,null,null,null,null,null,0]
[21,"979990112RRA","Poplatek za skládku suti - obalované kam. - asfalt ","t",11.275,null,{"$f":"E78*F78","v":0},null,null,null,null,null,null,null,2,null,null,null,null,null,null,null,null,null,null,null,1,1,1,null,null,null,null,null,null,null,null,null,null,null,null,null,null,null,null,null,null,null,null,null,null,1,{"$f":"IF(AZ78=1,G78,0)","v":0},{"$f":"IF(AZ78=2,G78,0)","v":0},{"$f":"IF(AZ78=3,G78,0)","v":0},{"$f":"IF(AZ78=4,G78,0)","v":0},{"$f":"IF(AZ78=5,G78,0)","v":0},null,null,null,null,null,null,null,null,null,null,null,null,null,null,null,null,null,null,null,null,null,1,1,null,null,null,null,null,null,null,null,null,null,null,null,null,null,null,null,null,null,null,null,null,null,null,0]
[null,null,"Položka je určena pro suť o velikosti kusu do 30x30 cm (technologický materiál určený k recyklaci).",null,null,null,null,null,null,null,null,"Položka je určena pro suť o velikosti kusu do 30x30 cm (technologický materiál určený k recyklaci).",null,null,3]
[null,"Celkem za",{"$f":"CONCATENATE(B7,\" \",C7)","v":"1 Zemní práce"},null,null,null,{"$f":"SUM(G7:G79)","v":0},null,null,null,null,null,null,null,4,null,null,null,null,null,null,null,null,null,null,null,null,null,null,null,null,null,null,null,null,null,null,null,null,null,null,null,null,null,null,null,null,null,null,null,null,null,{"$f":"SUM(BA7:BA79)","v":0},{"$f":"SUM(BB7:BB79)","v":0},{"$f":"SUM(BC7:BC79)","v":0},{"$f":"SUM(BD7:BD79)","v":0},{"$f":"SUM(BE7:BE79)","v":0}]
["Díl:","5","Komunikace",null,null,null,null,null,null,null,null,null,null,null,1]
[22,"564791111R00","Podklad pro zpevněné plochy z kam.drceného 0-63 mm ","m3",74.022400000000005,null,{"$f":"E82*F82","v":0},null,null,null,null,null,null,null,2,null,null,null,null,null,null,null,null,null,null,null,1,0,0,null,null,null,null,null,null,null,null,null,null,null,null,null,null,null,null,null,null,null,null,null,null,1,{"$f":"IF(AZ82=1,G82,0)","v":0},{"$f":"IF(AZ82=2,G82,0)","v":0},{"$f":"IF(AZ82=3,G82,0)","v":0},{"$f":"IF(AZ82=4,G82,0)","v":0},{"$f":"IF(AZ82=5,G82,0)","v":0},null,null,null,null,null,null,null,null,null,null,null,null,null,null,null,null,null,null,null,null,null,1,0,null,null,null,null,null,null,null,null,null,null,null,null,null,null,null,null,null,null,null,null,null,null,null,2.2040000000000002]
[null,null,"Včetně kameniva, rozprostření a zhutnění podkladu.",null,null,null,null,null,null,null,null,"Včetně kameniva, rozprostření a zhutnění podkladu.",null,null,3]
[null,null,"Po bouraných betonových plochách:201,25*0,25",null,50.3125,null,null,null,null,null,null,null,"Po bouraných betonových plochách:201,25*0,25"]
[null,null,"Po bouraných asfaltových plochách v chodníku:13,25*0,20",null,2.65,null,null,null,null,null,null,null,"Po bouraných asfaltových plochách v chodníku:13,25*0,20"]
[null,null,"Po silničních panelech v chodníku:51,30*0,20",null,10.26,null,null,null,null,null,null,null,"Po silničních panelech v chodníku:51,30*0,20"]
[null,null,"Po silničních panelech u vjezdu:6,30*0,25",null,1.575,null,null,null,null,null,null,null,"Po silničních panelech u vjezdu:6,30*0,25"]
[null,null,"Pro rozšíření části chodníku u bouraných panelů:30,00*0,40*0,20",null,2.4,null,null,null,null,null,null,null,"Pro rozšíření části chodníku u bouraných panelů:30,00*0,40*0,20"]
[null,null,"Pro nové obrubníky - Vjezdy a křižovatky podél odstraňovaných betonových obrubníků:110,00*0,30*0,10",null,3.3,null,null,null,null,null,null,null,"Pro nové obrubníky - Vjezdy a křižovatky podél odstraňovaných betonových obrubníků:110,00*0,30*0,10"]
[null,null,"Rezerva 5%:70,4975*0,05",null,3.5249000000000001,null,null,null,null,null,null,null,"Rezerva 5%:70,4975*0,05"]
[23,"565131111RT3","Podklad z obal kamen. ACP 16+, š. do 3 m, tl. 5 cm plochy 101-200 m2","m2",150.465,null,{"$f":"E91*F91","v":0},null,null,null,null,null,null,null,2,null,null,null,null,null,null,null,null,null,null,null,1,1,1,null,null,null,null,null,null,null,null,null,null,null,null,null,null,null,null,null,null,null,null,null,null,1,{"$f":"IF(AZ91=1,G91,0)","v":0},{"$f":"IF(AZ91=2,G91,0)","v":0},{"$f":"IF(AZ91=3,G91,0)","v":0},{"$f":"IF(AZ91=4,G91,0)","v":0},{"$f":"IF(AZ91=5,G91,0)","v":0},null,null,null,null,null,null,null,null,null,null,null,null,null,null,null,null,null,null,null,null,null,1,1,null,null,null,null,null,null,null,null,null,null,null,null,null,null,null,null,null,null,null,null,null,null,null,0.13188]
[null,null,"Vjezdy k RD mimo prostor panelů:143,30",null,143.30000000000001,null,null,null,null,null,null,null,"Vjezdy k RD mimo prostor panelů:143,30"]
[null,null,"Rezerva 5%:143,30*0,05",null,7.165,null,null,null,null,null,null,null,"Rezerva 5%:143,30*0,05"]
[24,"572713112R00","Vyrovnání povrchu krytů kamen. obaleným asfaltem ","t",33.125,null,{"$f":"E94*F94","v":0},null,null,null,null,null,null,null,2,null,null,null,null,null,null,null,null,null,null,null,1,1,1,null,null,null,null,null,null,null,null,null,null,null,null,null,null,null,null,null,null,null,null,null,null,1,{"$f":"IF(AZ94=1,G94,0)","v":0},{"$f":"IF(AZ94=2,G94,0)","v":0},{"$f":"IF(AZ94=3,G94,0)","v":0},{"$f":"IF(AZ94=4,G94,0)","v":0},{"$f":"IF(AZ94=5,G94,0)","v":0},null,null,null,null,null,null,null,null,null,null,null,null,null,null,null,null,null,null,null,null,null,1,1,null,null,null,null,null,null,null,null,null,null,null,null,null,null,null,null,null,null,null,null,null,null,null,1]
[null,null,"Chodník - prostor stávajících panelů:300,00*0,035*2,5",null,26.25,null,null,null,null,null,null,null,"Chodník - prostor stávajících panelů:300,00*0,035*2,5"]
[null,null,"Vjezdy a křižovatky v komunikaci po osyzení nových obrubníků:110,00*0,25*0,10*2,5",null,6.875,null,null,null,null,null,null,null,"Vjezdy a křižovatky v komunikaci po osyzení nových obrubníků:110,00*0,25*0,10*2,5"]
[25,"572952111RRR","Vyspravení krytu po překopu asf.betonem tl.do 5 cm ","m2",27.5,null,{"$f":"E97*F97","v":0},null,null,null,null,null,null,null,2,null,null,null,null,null,null,null,null,null,null,null,1,1,1,null,null,null,null,null,null,null,null,null,null,null,null,null,null,null,null,null,null,null,null,null,null,1,{"$f":"IF(AZ97=1,G97,0)","v":0},{"$f":"IF(AZ97=2,G97,0)","v":0},{"$f":"IF(AZ97=3,G97,0)","v":0},{"$f":"IF(AZ97=4,G97,0)","v":0},{"$f":"IF(AZ97=5,G97,0)","v":0},null,null,null,null,null,null,null,null,null,null,null,null,null,null,null,null,null,null,null,null,null,1,1,null,null,null,null,null,null,null,null,null,null,null,null,null,null,null,null,null,null,null,null,null,null,null,0.10255]
[null,null,"Ruční úprava doasfaltování ploch komunikace po osazení nových silničních obrubníků.",null,null,null,null,null,null,null,null,"Ruční úprava doasfaltování ploch komunikace po osazení nových silničních obrubníků.",null,null,3]
[null,null,"Vjezdy a křižovatky v komunikaci:110,00*0,25",null,27.5,null,null,null,null,null,null,null,"Vjezdy a křižovatky v komunikaci:110,00*0,25"]
[26,"573231111R00","Postřik živičný spojovací z emulze 0,5-0,7 kg/m2 ","m2",783.09,null,{"$f":"E100*F100","v":0},null,null,null,null,null,null,null,2,null,null,null,null,null,null,null,null,null,null,null,1,1,1,null,null,null,null,null,null,null,null,null,null,null,null,null,null,null,null,null,null,null,null,null,null,1,{"$f":"IF(AZ100=1,G100,0)","v":0},{"$f":"IF(AZ100=2,G100,0)","v":0},{"$f":"IF(AZ100=3,G100,0)","v":0},{"$f":"IF(AZ100=4,G100,0)","v":0},{"$f":"IF(AZ100=5,G100,0)","v":0},null,null,null,null,null,null,null,null,null,null,null,null,null,null,null,null,null,null,null,null,null,1,1,null,null,null,null,null,null,null,null,null,null,null,null,null,null,null,null,null,null,null,null,null,null,null,7.1000000000000002E-4]
[null,null,"Vjezdy k RD mimo prostor panelů:143,30",null,143.30000000000001,null,null,null,null,null,null,null,"Vjezdy k RD mimo prostor panelů:143,30"]
[null,null,"Vjezdy a křižovatky v komunikaci:110,00*0,25",null,27.5,null,null,null,null,null,null,null,"Vjezdy a křižovatky v komunikaci:110,00*0,25"]
[null,null,"Celková plocha chodníků a vjezdů:575,00",null,575,null,null,null,null,null,null,null,"Celková plocha chodníků a vjezdů:575,00"]
[null,null,"Rezerva 5%:745,8000*0,05",null,37.29,null,null,null,null,null,null,null,"Rezerva 5%:745,8000*0,05"]
[27,"577141312RT2","Beton asfalt. ACO 8 CH,ACO 11,ACO 16, do 3 m, 5 cm plochy 201-1000 m2","m2",603.75,null,{"$f":"E105*F105","v":0},null,null,null,null,null,null,null,2,null,null,null,null,null,null,null,null,null,null,null,1,1,1,null,null,null,null,null,null,null,null,null,null,null,null,null,null,null,null,null,null,null,null,null,null,1,{"$f":"IF(AZ105=1,G105,0)","v":0},{"$f":"IF(AZ105=2,G105,0)","v":0},{"$f":"IF(AZ105=3,G105,0)","v":0},{"$f":"IF(AZ105=4,G105,0)","v":0},{"$f":"IF(AZ105=5,G105,0)","v":0},null,null,null,null,null,null,null,null,null,null,null,null,null,null,null,null,null,null,null,null,null,1,1,null,null,null,null,null,null,null,null,null,null,null,null,null,null,null,null,null,null,null,null,null,null,null,0.12715000000000001]
[null,null,"Celková plocha chodníků a vjezdů:575,00",null,575,null,null,null,null,null,null,null,"Celková plocha chodníků a vjezdů:575,00"]
[null,null,"Rezerva 5%:575,00*0,05",null,28.75,null,null,null,null,null,null,null,"Rezerva 5%:575,00*0,05"]
[28,"591241111R00","Kladení dlažby drobné kostky, lože z MC tl. 5 cm ","m2",26,null,{"$f":"E108*F108","v":0},null,null,null,null,null,null,null,2,null,null,null,null,null,null,null,null,null,null,null,1,1,1,null,null,null,null,null,null,null,null,null,null,null,null,null,null,null,null,null,null,null,null,null,null,1,{"$f":"IF(AZ108=1,G108,0)","v":0},{"$f":"IF(AZ108=2,G108,0)","v":0},{"$f":"IF(AZ108=3,G108,0)","v":0},{"$f":"IF(AZ108=4,G108,0)","v":0},{"$f":"IF(AZ108=5,G108,0)","v":0},null,null,null,null,null,null,null,null,null,null,null,null,null,null,null,null,null,null,null,null,null,1,1,null,null,null,null,null,null,null,null,null,null,null,null,null,null,null,null,null,null,null,null,null,null,null,0.30131999999999998]
[null,null,"Materiál investora",null,null,null,null,null,null,null,null,"Materiál investora",null,null,3]
[null,null,"Dláždění mezi chodníkem a stávající obrubou:26,00",null,26,null,null,null,null,null,null,null,"Dláždění mezi chodníkem a stávající obrubou:26,00"]
[29,"599142111R00","Úprava zálivky dil.spár hloubky do 4 cm š. do 4 cm ","m",115,null,{"$f":"E111*F111","v":0},null,null,null,null,null,null,null,2,null,null,null,null,null,null,null,null,null,null,null,1,1,1,null,null,null,null,null,null,null,null,null,null,null,null,null,null,null,null,null,null,null,null,null,null,1,{"$f":"IF(AZ111=1,G111,0)","v":0},{"$f":"IF(AZ111=2,G111,0)","v":0},{"$f":"IF(AZ111=3,G111,0)","v":0},{"$f":"IF(AZ111=4,G111,0)","v":0},{"$f":"IF(AZ111=5,G111,0)","v":0},null,null,null,null,null,null,null,null,null,null,null,null,null,null,null,null,null,null,null,null,null,1,1,null,null,null,null,null,null,null,null,null,null,null,null,null,null,null,null,null,null,null,null,null,null,null,2.2399999999999998E-3]
[null,null,"Vjezdy a křižovatky podél odstraňovaných betonových obrubníků:110,00+0,25*20",null,115,null,null,null,null,null,null,null,"Vjezdy a křižovatky podél odstraňovaných betonových obrubníků:110,00+0,25*20"]
[null,"Celkem za",{"$f":"CONCATENATE(B81,\" \",C81)","v":"5 Komunikace"},null,null,null,{"$f":"SUM(G81:G112)","v":0},null,null,null,null,null,null,null,4,null,null,null,null,null,null,null,null,null,null,null,null,null,null,null,null,null,null,null,null,null,null,null,null,null,null,null,null,null,null,null,null,null,null,null,null,null,{"$f":"SUM(BA81:BA112)","v":0},{"$f":"SUM(BB81:BB112)","v":0},{"$f":"SUM(BC81:BC112)","v":0},{"$f":"SUM(BD81:BD112)","v":0},{"$f":"SUM(BE81:BE112)","v":0}]
["Díl:","91","Doplňující práce na komunikaci",null,null,null,null,null,null,null,null,null,null,null,1]
[30,"917862111R00","Osazení stojat. obrub.bet. s opěrou,lože z C 12/15 ","m",110,null,{"$f":"E115*F115","v":0},null,null,null,null,null,null,null,2,null,null,null,null,null,null,null,null,null,null,null,1,1,1,null,null,null,null,null,null,null,null,null,null,null,null,null,null,null,null,null,null,null,null,null,null,1,{"$f":"IF(AZ115=1,G115,0)","v":0},{"$f":"IF(AZ115=2,G115,0)","v":0},{"$f":"IF(AZ115=3,G115,0)","v":0},{"$f":"IF(AZ115=4,G115,0)","v":0},{"$f":"IF(AZ115=5,G115,0)","v":0},null,null,null,null,null,null,null,null,null,null,null,null,null,null,null,null,null,null,null,null,null,1,1,null,null,null,null,null,null,null,null,null,null,null,null,null,null,null,null,null,null,null,null,null,null,null,0.14424000000000001]
[null,null,"Vjezdy a křižovatky podél odstraňovaných betonových obrubníků:110,00",null,110,null,null,null,null,null,null,null,"Vjezdy a křižovatky podél odstraňovaných betonových obrubníků:110,00"]
[31,"59217501R","Obrubník betonový nájezdový 100x15x15 cm přírodní","kus",40.4,null,{"$f":"E117*F117","v":0},null,null,null,null,null,null,null,2,null,null,null,null,null,null,null,null,null,null,null,3,1,"59217501R",null,null,null,null,null,null,null,null,null,null,null,null,null,null,null,null,null,null,null,null,null,null,1,{"$f":"IF(AZ117=1,G117,0)","v":0},{"$f":"IF(AZ117=2,G117,0)","v":0},{"$f":"IF(AZ117=3,G117,0)","v":0},{"$f":"IF(AZ117=4,G117,0)","v":0},{"$f":"IF(AZ117=5,G117,0)","v":0},null,null,null,null,null,null,null,null,null,null,null,null,null,null,null,null,null,null,null,null,null,3,1,null,null,null,null,null,null,null,null,null,null,null,null,null,null,null,null,null,null,null,null,null,null,null,5.3499999999999999E-2]
[null,null,"Vjezdy, křižovatky a chodník:40,00*1,01",null,40.4,null,null,null,null,null,null,null,"Vjezdy, křižovatky a chodník:40,00*1,01"]
[32,"59217504R","Obrubník betonový 100x15/12x25 cm přírodní","kus",50.5,null,{"$f":"E119*F119","v":0},null,null,null,null,null,null,null,2,null,null,null,null,null,null,null,null,null,null,null,3,1,"59217504R",null,null,null,null,null,null,null,null,null,null,null,null,null,null,null,null,null,null,null,null,null,null,1,{"$f":"IF(AZ119=1,G119,0)","v":0},{"$f":"IF(AZ119=2,G119,0)","v":0},{"$f":"IF(AZ119=3,G119,0)","v":0},{"$f":"IF(AZ119=4,G119,0)","v":0},{"$f":"IF(AZ119=5,G119,0)","v":0},null,null,null,null,null,null,null,null,null,null,null,null,null,null,null,null,null,null,null,null,null,3,1,null,null,null,null,null,null,null,null,null,null,null,null,null,null,null,null,null,null,null,null,null,null,null,8.5999999999999993E-2]
[null,null,"Křižovatky a chodník:50,00*1,01",null,50.5,null,null,null,null,null,null,null,"Křižovatky a chodník:50,00*1,01"]
[33,"5921752.1R","Obrubník betonový přechodový pravý 100x25/15x15 cm přírodní","kus",10.1,null,{"$f":"E121*F121","v":0},null,null,null,null,null,null,null,2,null,null,null,null,null,null,null,null,null,null,null,3,1,"5921752.1R",null,null,null,null,null,null,null,null,null,null,null,null,null,null,null,null,null,null,null,null,null,null,1,{"$f":"IF(AZ121=1,G121,0)","v":0},{"$f":"IF(AZ121=2,G121,0)","v":0},{"$f":"IF(AZ121=3,G121,0)","v":0},{"$f":"IF(AZ121=4,G121,0)","v":0},{"$f":"IF(AZ121=5,G121,0)","v":0},null,null,null,null,null,null,null,null,null,null,null,null,null,null,null,null,null,null,null,null,null,3,1,null,null,null,null,null,null,null,null,null,null,null,null,null,null,null,null,null,null,null,null,null,null,null,7.0000000000000007E-2]
[null,null,"Vjezdy a křižovatky:10,00*1,01",null,10.1,null,null,null,null,null,null,null,"Vjezdy a křižovatky:10,00*1,01"]
[34,"5921752.2R","Obrubník betonový přechodový levý 100x25/15x15 cm přírodní","kus",10.1,null,{"$f":"E123*F123","v":0},null,null,null,null,null,null,null,2,null,null,null,null,null,null,null,null,null,null,null,3,1,"5921752.2R",null,null,null,null,null,null,null,null,null,null,null,null,null,null,null,null,null,null,null,null,null,null,1,{"$f":"IF(AZ123=1,G123,0)","v":0},{"$f":"IF(AZ123=2,G123,0)","v":0},{"$f":"IF(AZ123=3,G123,0)","v":0},{"$f":"IF(AZ123=4,G123,0)","v":0},{"$f":"IF(AZ123=5,G123,0)","v":0},null,null,null,null,null,null,null,null,null,null,null,null,null,null,null,null,null,null,null,null,null,3,1,null,null,null,null,null,null,null,null,null,null,null,null,null,null,null,null,null,null,null,null,null,null,null,7.0000000000000007E-2]
[null,null,"Vjezdy a křižovatky:10,00*1,01",null,10.1,null,null,null,null,null,null,null,"Vjezdy a křižovatky:10,00*1,01"]
[null,"Celkem za",{"$f":"CONCATENATE(B114,\" \",C114)","v":"91 Doplňující práce na komunikaci"},null,null,null,{"$f":"SUM(G114:G124)","v":0},null,null,null,null,null,null,null,4,null,null,null,null,null,null,null,null,null,null,null,null,null,null,null,null,null,null,null,null,null,null,null,null,null,null,null,null,null,null,null,null,null,null,null,null,null,{"$f":"SUM(BA114:BA124)","v":0},{"$f":"SUM(BB114:BB124)","v":0},{"$f":"SUM(BC114:BC124)","v":0},{"$f":"SUM(BD114:BD124)","v":0},{"$f":"SUM(BE114:BE124)","v":0}]
["Díl:","99","Staveništní přesun hmot",null,null,null,null,null,null,null,null,null,null,null,1]
[35,"998225111R00","Přesun hmot, pozemní komunikace, kryt živičný ","t",328.1415652,null,{"$f":"E127*F127","v":0},null,null,null,null,null,null,null,2,null,null,null,null,null,null,null,null,null,null,null,7,1,2,null,null,null,null,null,null,null,null,null,null,null,null,null,null,null,null,null,null,null,null,null,null,1,{"$f":"IF(AZ127=1,G127,0)","v":0},{"$f":"IF(AZ127=2,G127,0)","v":0},{"$f":"IF(AZ127=3,G127,0)","v":0},{"$f":"IF(AZ127=4,G127,0)","v":0},{"$f":"IF(AZ127=5,G127,0)","v":0},null,null,null,null,null,null,null,null,null,null,null,null,null,null,null,null,null,null,null,null,null,7,1,null,null,null,null,null,null,null,null,null,null,null,null,null,null,null,null,null,null,null,null,null,null,null,0]
[null,"Celkem za",{"$f":"CONCATENATE(B126,\" \",C126)","v":"99 Staveništní přesun hmot"},null,null,null,{"$f":"SUM(G126:G127)","v":0},null,null,null,null,null,null,null,4,null,null,null,null,null,null,null,null,null,null,null,null,null,null,null,null,null,null,null,null,null,null,null,null,null,null,null,null,null,null,null,null,null,null,null,null,null,{"$f":"SUM(BA126:BA127)","v":0},{"$f":"SUM(BB126:BB127)","v":0},{"$f":"SUM(BC126:BC127)","v":0},{"$f":"SUM(BD126:BD127)","v":0},{"$f":"SUM(BE126:BE127)","v":0}]